Workbook

Sheet 읍면동별 세대 및 인구
A1: 여수시 읍면동별 세대 및 인구
A2: 작성기준 : 2019. 11. 30. 현재 | J2: (단위 : 세대, 명)
A3: 구 분 | B3: 세대수1) | C3: 합 계 | F3: 한국인 | I3: 외국인
C4: 계 | D4: 남 | E4: 여 | F4: 계 | G4: 남 | H4: 여 | I4: 계 | J4: 남 | K4: 여
A5: 18년 12월말 | B5: 120,810 | C5: 287,868 | D5: 147,056 | E5: 140,812 | F5: 283,300 | G5: 143,802 | H5: 139,498 | I5: 4,568 | J5: 3,254 | K5: 1,314
A6: 19년 1월말 | B6: 120,911 | C6: =SUM(D6:E6) -> 287,663 | D6: =SUM(G6+J6) -> 146,975 | E6: =SUM(H6+K6) -> 140,688 | F6: =SUM(G6:H6) -> 283,114 | G6: 143,738 | H6: 139,376 | I6: 4,549 | J6: 3,237 | K6: 1,312
A7: 19년 2월말 | B7: 121,044 | C7: 287,330 | D7: 146,790 | E7: 140,540 | F7: 282,813 | G7: 143,585 | H7: 139,228 | I7: 4,517 | J7: 3,205 | K7: 1,312
A8: 19년 3월말 | B8: 121,291 | C8: 287,290 | D8: 146,802 | E8: 140,488 | F8: 282,780 | G8: 143,617 | H8: 139,163 | I8: 4,510 | J8: 3,185 | K8: 1,325
A9: 19년 4월말 | B9: 121,719 | C9: 287,472 | D9: 146,967 | E9: 140,505 | F9: 282,946 | G9: 143,773 | H9: 139,173 | I9: 4,526 | J9: 3,194 | K9: 1,332
A10: 19년 5월말 | B10: 122,111 | C10: 287,724 | D10: 147,095 | E10: 140,629 | F10: 283,182 | G10: 143,890 | H10: 139,292 | I10: 4,542 | J10: 3,205 | K10: 1,337
A11: 19년 6월말 | B11: 122,210 | C11: 287,463 | D11: 146,992 | E11: 140,471 | F11: 282,869 | G11: 143,747 | H11: 139,122 | I11: 4,594 | J11: 3,245 | K11: 1,349
A12: 19년 7월말 | B12: 122,374 | C12: 287,274 | D12: 146,905 | E12: 140,369 | F12: 282,632 | G12: 143,615 | H12: 139,017 | I12: 4,642 | J12: 3,290 | K12: 1,352
A13: 19년 8월말 | B13: 122,466 | C13: 287,049 | D13: 146,810 | E13: 140,239 | F13: 282,357 | G13: 143,470 | H13: 138,887 | I13: 4,692 | J13: 3,340 | K13: 1,352
A14: 19년 9월말 | B14: 122,689 | C14: 286,848 | D14: 146,666 | E14: 140,182 | F14: 282,188 | G14: 143,373 | H14: 138,815 | I14: 4,660 | J14: 3,293 | K14: 1,367
A15: 19년 10월말 | B15: 122,918 | C15: 286,729 | D15: 146,654 | E15: 140,075 | F15: 282,058 | G15: 143,351 | H15: 138,707 | I15: 4,671 | J15: 3,303 | K15: 1,368
A16: 19년 11월말 | B16: 123,445 | C16: 287,673 | D16: 147,163 | E16: 140,510 | F16: 282,980 | G16: 143,857 | H16: 139,123 | I16: 4,693 | J16: 3,306 | K16: 1,387
A17: 돌산읍 | B17: 6,540 | C17: =SUM(D17:E17) -> 14,143 | D17: =SUM(G17+J17) -> 7,483 | E17: =SUM(H17+K17) -> 6,660 | F17: 13,371 | G17: 6,800 | H17: 6,571 | I17: 772 | J17: 683 | K17: 89
A18: 소라면 | B18: 8,793 | C18: 21,129 | D18: =SUM(G18+J18) -> 10,718 | E18: =SUM(H18+K18) -> 10,411 | F18: 20,986 | G18: 10,669 | H18: 10,317 | I18: 143 | J18: 49 | K18: 94
A19: 율촌면 | B19: 3,236 | C19: 6,563 | D19: =SUM(G19+J19) -> 3,405 | E19: 3,158 | F19: 6,406 | G19: 3,293 | H19: 3,113 | I19: 157 | J19: 112 | K19: 45
A20: 화양면 | B20: 3,529 | C20: 6,825 | D20: 3,582 | E20: 3,243 | F20: 6,635 | G20: 3,434 | H20: 3,201 | I20: 190 | J20: 148 | K20: 42
A21: 남면 | B21: 1,680 | C21: 3,055 | D21: 1,597 | E21: 1,458 | F21: 2,939 | G21: 1,493 | H21: 1,446 | I21: 116 | J21: 104 | K21: 12
A22: 화정면 | B22: 1,265 | C22: 2,261 | D22: 1,140 | E22: 1,121 | F22: 2,196 | G22: 1,079 | H22: 1,117 | I22: 65 | J22: 61 | K22: 4
A23: 삼산면 | B23: 1,212 | C23: 2,217 | D23: 1,272 | E23: 945 | F23: 2,115 | G23: 1,180 | H23: 935 | I23: 102 | J23: 92 | K23: 10
A24: 동문동 | B24: 2,452 | C24: 4,714 | D24: 2,393 | E24: 2,321 | F24: 4,655 | G24: 2,354 | H24: 2,301 | I24: 59 | J24: 39 | K24: 20
A25: 한려동 | B25: 1,817 | C25: 3,309 | D25: 1,681 | E25: 1,628 | F25: 3,287 | G25: 1,675 | H25: 1,612 | I25: 22 | J25: 6 | K25: 16
A26: 중앙동 | B26: 2,359 | C26: 4,771 | D26: 2,416 | E26: 2,355 | F26: 4,660 | G26: 2,335 | H26: 2,325 | I26: 111 | J26: 81 | K26: 30
A27: 충무동 | B27: 2,231 | C27: 4,209 | D27: 2,174 | E27: 2,035 | F27: 4,161 | G27: 2,144 | H27: 2,017 | I27: 48 | J27: 30 | K27: 18
A28: 광림동 | B28: 3,254 | C28: 6,481 | D28: 3,338 | E28: 3,143 | F28: 6,435 | G28: 3,328 | H28: 3,107 | I28: 46 | J28: 10 | K28: 36
A29: 서강동 | B29: 1,916 | C29: 3,914 | D29: 1,952 | E29: 1,962 | F29: 3,886 | G29: 1,945 | H29: 1,941 | I29: 28 | J29: 7 | K29: 21
A30: 대교동 | B30: 3,088 | C30: 5,914 | D30: 3,138 | E30: 2,776 | F30: 5,612 | G30: 2,880 | H30: 2,732 | I30: 302 | J30: 258 | K30: 44
A31: 국동 | B31: 5,372 | C31: 12,408 | D31: 6,409 | E31: 5,999 | F31: 12,032 | G31: 6,084 | H31: 5,948 | I31: 376 | J31: 325 | K31: 51
A32: 월호동 | B32: 2,903 | C32: 7,574 | D32: 3,877 | E32: 3,697 | F32: 7,275 | G32: 3,602 | H32: 3,673 | I32: 299 | J32: 275 | K32: 24
A33: 여서동 | B33: 7,760 | C33: 19,550 | D33: 9,647 | E33: 9,903 | F33: 19,404 | G33: 9,579 | H33: 9,825 | I33: 146 | J33: 68 | K33: 78
A34: 문수동 | B34: 8,674 | C34: 20,478 | D34: 10,277 | E34: 10,201 | F34: 20,141 | G34: 10,075 | H34: 10,066 | I34: 337 | J34: 202 | K34: 135
A35: 미평동 | B35: 5,727 | C35: 12,498 | D35: 6,645 | E35: 5,853 | F35: 12,271 | G35: 6,485 | H35: 5,786 | I35: 227 | J35: 160 | K35: 67
A36: 둔덕동 | B36: 4,044 | C36: 10,728 | D36: 5,394 | E36: 5,334 | F36: 10,574 | G36: 5,329 | H36: 5,245 | I36: 154 | J36: 65 | K36: 89
A37: 만덕동 | B37: 4,334 | C37: 10,714 | D37: 5,356 | E37: 5,358 | F37: 10,555 | G37: 5,263 | H37: 5,292 | I37: 159 | J37: 93 | K37: 66
A38: 쌍봉동 | B38: 13,215 | C38: 33,463 | D38: 17,101 | E38: 16,362 | F38: 33,239 | G38: 16,993 | H38: 16,246 | I38: 224 | J38: 108 | K38: 116
A39: 시전동 | B39: 13,193 | C39: 36,225 | D39: 18,194 | E39: 18,031 | F39: 35,992 | G39: 18,069 | H39: 17,923 | I39: 233 | J39: 125 | K39: 108
A40: 여천동 | B40: 9,989 | C40: 22,275 | D40: 11,606 | E40: 10,669 | F40: 22,113 | G40: 11,559 | H40: 10,554 | I40: 162 | J40: 47 | K40: 115
A41: 주삼동 | B41: 2,975 | C41: 8,308 | D41: 4,213 | E41: 4,095 | F41: 8,239 | G41: 4,181 | H41: 4,058 | I41: 69 | J41: 32 | K41: 37
A42: 삼일동 | B42: 1,286 | C42: 2,720 | D42: 1,517 | E42: 1,203 | F42: 2,582 | G42: 1,392 | H42: 1,190 | I42: 138 | J42: 125 | K42: 13
A43: 묘도동 | B43: 601 | C43: 1,227 | D43: 638 | E43: 589 | F43: 1,219 | G43: 637 | H43: 582 | I43: 8 | J43: 1 | K43: 7
A44: 주 : 1) 세대수에는 외국인 세대 제외

Sheet 65세이상 인구(총괄)
A1: 65세이상 인구 현황(총괄)
A2: 작성기준 : 2019. 11. 30. 현재 | D2: (단위 : 명)
A3: 구 분 | B3: 계 | C3: 남 | D3: 여 | E3: 노령화 지수
A4: 2011년말 | B4: 37,830 | C4: 15,023 | D4: 22,807 | E4: 82.0
A5: 2012년말 | B5: 39,671 | C5: 15,929 | D5: 23,742 | E5: 89.4
A6: 2013년말 | B6: 41,369 | C6: 16,775 | D6: 24,594 | E6: 96.8
A7: 2014년말 | B7: 43,225 | C7: 17,752 | D7: 25,473 | E7: 105.4
A8: 2015년말 | B8: 44,997 | C8: 18,775 | D8: 26,222 | E8: 114.3
A9: 2016년말 | B9: 46,632 | C9: 19,720 | D9: 26,912 | E9: 121.8
A10: 2017년말 | B10: 48,569 | C10: 20,703 | D10: 27,866 | E10: 130.6
A11: 2018년말 | B11: 49,609 | C11: 21,259 | D11: 28,350 | E11: 139.0
A12: 2019년 1월말 | B12: 49,704 | C12: 21,310 | D12: 28,394 | E12: 140.0
A13: 2019년 2월말 | B13: 49,819 | C13: 21,358 | D13: 28,461 | E13: 140.7
A14: 2019년 3월말 | B14: 50,076 | C14: 21,489 | D14: 28,587 | E14: 141.9
A15: 2019년 4월말 | B15: 50,229 | C15: 21,576 | D15: 28,653 | E15: 142.3
A16: 2019년 5월말 | B16: 50,498 | C16: 21,716 | D16: 28,782 | E16: 143.7
A17: 2019년 6월말 | B17: 50,706 | C17: 21,831 | D17: 28,875 | E17: 144.3
A18: 2019년 7월말 | B18: 50,883 | C18: 21,900 | D18: 28,983 | E18: 145.7
A19: 2019년 8월말 | B19: 51,094 | C19: 22,009 | D19: 29,085 | E19: 146.7
A20: 2019년 9월말 | B20: 51,310 | C20: 22,092 | D20: 29,218 | E20: 148.0
A21: 2019년 10월말 | B21: 51,548 | C21: 22,237 | D21: 29,311 | E21: 149.2
A22: 2019년 11월말 | B22: 51,802 | C22: 22,363 | D22: 29,439 | E22: 149.9
A23: 자료 : 민원지적과
A24: 주 : 노령화 지수 = (65세이상인구 / 0~14세 인구) * 100
J33: `
